Workbook

Sheet EXO.0 - Valeur cible et Solveur
A1: X | B1: 2.5
A2: Y | B2: =B1^2-3*B1+2 -> 0.75
A4: Contrainte | B4: =2*B1-5 -> 0
C7: =B2 -> 0.75
B8: 0 | C8: 2
B9: 0.1 | C9: 1.71
B10: 0.2 | C10: 1.44
B11: 0.3 | C11: 1.19
B12: 0.4 | C12: 0.96
B13: 0.5 | C13: 0.75
B14: 0.6 | C14: 0.56
B15: 0.7 | C15: 0.39
B16: 0.8 | C16: 0.24
B17: 0.9 | C17: 0.11
B18: 1 | C18: 0
B19: 1.1 | C19: -0.09
B20: 1.2 | C20: -0.16
B21: 1.3 | C21: -0.21
B22: 1.4 | C22: -0.24
B23: 1.5 | C23: -0.25
B24: 1.6 | C24: -0.24
B25: 1.7 | C25: -0.21
B26: 1.8 | C26: -0.16
B27: 1.9 | C27: -0.09
B28: 2 | C28: 0
B29: 2.1 | C29: 0.11
B30: 2.2 | C30: 0.24
B31: 2.3 | C31: 0.39
B32: 2.4 | C32: 0.56
B33: 2.5 | C33: 0.75
B34: 2.6 | C34: 0.96
B35: 2.7 | C35: 1.19
B36: 2.8 | C36: 1.44
B37: 2.9 | C37: 1.71
B38: 3 | C38: 2

Sheet EXO.1 - Utilité
A1: X1 | B1: 25
A2: X2 | B2: 12.5
A4: Utilité | B4: =B1*B2 -> 312.5
A6: Contrainte de budget | B6: =2*B1+4*B2 -> 100

Sheet EXO.2 - Optim.Prod
A1: X | B1: 10
A2: Y | B2: 20
A4: Utilisation de A | B4: =4*B1+2*B2 -> 80
A5: Utilisation de B | B5: =1*B1+3*B2 -> 70
A7: C.U - A | B7: 5
A8: C.U - B | B8: 12
A10: Cout total | B10: =B7*B4+B8*B5 -> 1240
A12: Rec.U.X | B12: 250
A13: Rec.U.Y | B13: 150
A15: Recette totale | B15: =B12*B1+B13*B2 -> 5500
A17: Bénéfice | B17: =B15-B10 -> 4260

Sheet EXO.3 - Nirvana
B1: MP.A | C1: MP.B | D1: MP.C | E1: Prix Lessive | F1: Qtté produite | G1: Recette
A2: ALPHA | B2: 0.15 | C2: 0.075 | D2: 0.025 | E2: 25 | F2: 10 | G2: =E2*F2 -> 250
A3: TATRA | B3: 0.075 | C3: 0.125 | D3: 0.05 | E3: 35 | F3: 10 | G3: =E3*F3 -> 350
A4: PUMA | B4: 0.055 | C4: 0.065 | D4: 0.13 | E4: 55 | F4: 10 | G4: =E4*F4 -> 550
A5: Utilisation MP | B5: =B$2*$F$2+B$3*$F$3+B$4*$F$4 -> 2.8 | C5: =C$2*$F$2+C$3*$F$3+C$4*$F$4 -> 2.65 | D5: =D$2*$F$2+D$3*$F$3+D$4*$F$4 -> 2.05 | F5: CA | G5: =SUM(G2:G4) -> 1150
A6: Coût unitaire MP | B6: 120 | C6: =MonCout(C5) -> 150 | D6: 250 | E6: COUT TOT MP
A7: Coût MP | B7: =B6*B5 -> 336 | C7: =C6*C5 -> 397.5 | D7: =D6*D5 -> 512.5 | E7: =SUM(B7:D7) -> 1246 | F7: Benefice | G7: =G5-E7 -> -96
B12: Table à 2 entrées
B13: =G7 -> -96 | C13: 250 | D13: 260 | E13: 270 | F13: 280 | G13: 290 | H13: 300 | I13: 310 | J13: 320 | K13: 330 | L13: 340 | M13: 350 | N13: 360 | O13: 370 | P13: 380 | Q13: 390 | R13: 400
B14: 90 | C14: -12 | D14: -32.5 | E14: -53 | F14: -73.5 | G14: -94 | H14: -114.5 | I14: -135 | J14: -155.5 | K14: -176 | L14: -196.5 | M14: -217 | N14: -237.5 | O14: -258 | P14: -278.5 | Q14: -299 | R14: -319.5
B15: 95 | C15: -26 | D15: -46.5 | E15: -67 | F15: -87.5 | G15: -108 | H15: -128.5 | I15: -149 | J15: -169.5 | K15: -190 | L15: -210.5 | M15: -231 | N15: -251.5 | O15: -272 | P15: -292.5 | Q15: -313 | R15: -333.5
B16: 100 | C16: -40 | D16: -60.5 | E16: -81 | F16: -101.5 | G16: -122 | H16: -142.5 | I16: -163 | J16: -183.5 | K16: -204 | L16: -224.5 | M16: -245 | N16: -265.5 | O16: -286 | P16: -306.5 | Q16: -327 | R16: -347.5
B17: 105 | C17: -54 | D17: -74.5 | E17: -95 | F17: -115.5 | G17: -136 | H17: -156.5 | I17: -177 | J17: -197.5 | K17: -218 | L17: -238.5 | M17: -259 | N17: -279.5 | O17: -300 | P17: -320.5 | Q17: -341 | R17: -361.5
B18: 110 | C18: -68 | D18: -88.5 | E18: -109 | F18: -129.5 | G18: -150 | H18: -170.5 | I18: -191 | J18: -211.5 | K18: -232 | L18: -252.5 | M18: -273 | N18: -293.5 | O18: -314 | P18: -334.5 | Q18: -355 | R18: -375.5
B19: 115 | C19: -82 | D19: -102.5 | E19: -123 | F19: -143.5 | G19: -164 | H19: -184.5 | I19: -205 | J19: -225.5 | K19: -246 | L19: -266.5 | M19: -287 | N19: -307.5 | O19: -328 | P19: -348.5 | Q19: -369 | R19: -389.5
B20: 120 | C20: -96 | D20: -116.5 | E20: -137 | F20: -157.5 | G20: -178 | H20: -198.5 | I20: -219 | J20: -239.5 | K20: -260 | L20: -280.5 | M20: -301 | N20: -321.5 | O20: -342 | P20: -362.5 | Q20: -383 | R20: -403.5
B21: 125 | C21: -110 | D21: -130.5 | E21: -151 | F21: -171.5 | G21: -192 | H21: -212.5 | I21: -233 | J21: -253.5 | K21: -274 | L21: -294.5 | M21: -315 | N21: -335.5 | O21: -356 | P21: -376.5 | Q21: -397 | R21: -417.5
B22: 130 | C22: -124 | D22: -144.5 | E22: -165 | F22: -185.5 | G22: -206 | H22: -226.5 | I22: -247 | J22: -267.5 | K22: -288 | L22: -308.5 | M22: -329 | N22: -349.5 | O22: -370 | P22: -390.5 | Q22: -411 | R22: -431.5
B23: 135 | C23: -138 | D23: -158.5 | E23: -179 | F23: -199.5 | G23: -220 | H23: -240.5 | I23: -261 | J23: -281.5 | K23: -302 | L23: -322.5 | M23: -343 | N23: -363.5 | O23: -384 | P23: -404.5 | Q23: -425 | R23: -445.5
B24: 140 | C24: -152 | D24: -172.5 | E24: -193 | F24: -213.5 | G24: -234 | H24: -254.5 | I24: -275 | J24: -295.5 | K24: -316 | L24: -336.5 | M24: -357 | N24: -377.5 | O24: -398 | P24: -418.5 | Q24: -439 | R24: -459.5
B25: 145 | C25: -166 | D25: -186.5 | E25: -207 | F25: -227.5 | G25: -248 | H25: -268.5 | I25: -289 | J25: -309.5 | K25: -330 | L25: -350.5 | M25: -371 | N25: -391.5 | O25: -412 | P25: -432.5 | Q25: -453 | R25: -473.5
B26: 150 | C26: -180 | D26: -200.5 | E26: -221 | F26: -241.5 | G26: -262 | H26: -282.5 | I26: -303 | J26: -323.5 | K26: -344 | L26: -364.5 | M26: -385 | N26: -405.5 | O26: -426 | P26: -446.5 | Q26: -467 | R26: -487.5
B27: 155 | C27: -194 | D27: -214.5 | E27: -235 | F27: -255.5 | G27: -276 | H27: -296.5 | I27: -317 | J27: -337.5 | K27: -358 | L27: -378.5 | M27: -399 | N27: -419.5 | O27: -440 | P27: -460.5 | Q27: -481 | R27: -501.5
B28: 160 | C28: -208 | D28: -228.5 | E28: -249 | F28: -269.5 | G28: -290 | H28: -310.5 | I28: -331 | J28: -351.5 | K28: -372 | L28: -392.5 | M28: -413 | N28: -433.5 | O28: -454 | P28: -474.5 | Q28: -495 | R28: -515.5
B29: 165 | C29: -222 | D29: -242.5 | E29: -263 | F29: -283.5 | G29: -304 | H29: -324.5 | I29: -345 | J29: -365.5 | K29: -386 | L29: -406.5 | M29: -427 | N29: -447.5 | O29: -468 | P29: -488.5 | Q29: -509 | R29: -529.5
B30: 170 | C30: -236 | D30: -256.5 | E30: -277 | F30: -297.5 | G30: -318 | H30: -338.5 | I30: -359 | J30: -379.5 | K30: -400 | L30: -420.5 | M30: -441 | N30: -461.5 | O30: -482 | P30: -502.5 | Q30: -523 | R30: -543.5
B31: 175 | C31: -250 | D31: -270.5 | E31: -291 | F31: -311.5 | G31: -332 | H31: -352.5 | I31: -373 | J31: -393.5 | K31: -414 | L31: -434.5 | M31: -455 | N31: -475.5 | O31: -496 | P31: -516.5 | Q31: -537 | R31: -557.5
B32: 180 | C32: -264 | D32: -284.5 | E32: -305 | F32: -325.5 | G32: -346 | H32: -366.5 | I32: -387 | J32: -407.5 | K32: -428 | L32: -448.5 | M32: -469 | N32: -489.5 | O32: -510 | P32: -530.5 | Q32: -551 | R32: -571.5
